bitfinex/quotes_BTCUSD_20241028
["timestamp","ask_amount","ask_price","bid_price","bid_amount"]
[1730137528486,0.88474374,69226.0,69225.0,0.003648]
[1730137528703,0.97120912,69226.0,69225.0,0.003648]
[1730137529122,0.88474374,69226.0,69225.0,0.003648]
[1730137529332,0.72516812,69226.0,69225.0,0.003648]
[1730137529538,0.97119108,69226.0,69225.0,0.003648]
[1730137530372,0.79000351,69226.0,69225.0,0.003648]
[1730137530983,0.88472779,69226.0,69225.0,0.003648]
[1730137531209,0.96642779,69226.0,69225.0,0.003648]
[1730137531427,1.01146575,69226.0,69225.0,0.003648]
[1730137531647,0.96442779,69226.0,69225.0,0.003648]
[1730137531901,0.97421585,69226.0,69225.0,0.003648]
[1730137532335,0.97621585,69226.0,69225.0,0.003648]
[1730137532769,1.02124135,69226.0,69225.0,0.003648]
[1730137532986,0.97621585,69226.0,69225.0,0.003648]
[1730137534779,0.99880422,69226.0,69225.0,0.003648]
[1730137535893,0.99879538,69226.0,69225.0,0.003648]
[1730137537370,0.99679538,69226.0,69225.0,0.003648]
[1730137537594,0.99879538,69226.0,69225.0,0.003648]
[1730137539633,1.01231322,69226.0,69225.0,0.003648]
[1730137540471,1.01228509,69226.0,69225.0,0.003648]
[1730137540888,0.98964621,69226.0,69225.0,0.003648]
[1730137541514,0.94856668,69226.0,69225.0,0.003648]
[1730137542877,0.59278949,69226.0,69225.0,0.003648]
[1730137543092,0.33833549,69226.0,69225.0,0.003648]
[1730137543591,0.3248,69226.0,69225.0,0.003648]
[1730137543856,0.30878181,69226.0,69225.0,0.002648]
[1730137544070,0.30078181,69226.0,69225.0,0.001648]
[1730137544289,0.40778181,69226.0,69225.0,0.002648]
[1730137544920,0.25132781,69226.0,69225.0,0.001648]
[1730137545149,0.25832781,69226.0,69225.0,0.081048]
[1730137545374,0.40278181,69226.0,69225.0,0.081048]
[1730137546086,0.40378181,69226.0,69225.0,0.081048]
[1730137547160,0.25932781,69226.0,69225.0,0.081048]
[1730137548432,0.40378181,69226.0,69225.0,0.081048]
[1730137551202,0.38878181,69226.0,69225.0,0.081048]
[1730137553313,0.38960581,69226.0,69225.0,0.081048]
[1730137554427,0.41224168,69226.0,69225.0,0.081048]
[1730137554645,0.41724168,69226.0,69225.0,0.081048]
[1730137556640,0.46048767,69226.0,69225.0,0.081048]
[1730137556857,0.41724168,69226.0,69225.0,0.081048]
[1730137557296,0.008824,69226.0,69225.0,0.081048]
[1730137557543,0.108824,69226.0,69225.0,0.081048]
[1730137557989,0.253278,69226.0,69225.0,0.081048]
[1730137559543,0.25038892,69226.0,69225.0,0.081048]
[1730137560842,0.40089273,69226.0,69225.0,0.081048]
[1730137561053,0.40089273,69226.0,69225.0,0.002648]
[1730137562139,0.40589273,69226.0,69225.0,0.002648]
[1730137562593,0.44915131,69226.0,69225.0,0.002648]
[1730137562804,0.40589273,69226.0,69225.0,0.079048]
[1730137563223,0.25643873,69226.0,69225.0,0.079048]
[1730137563430,0.40089273,69226.0,69225.0,0.079048]
[1730137563883,0.40589273,69226.0,69225.0,0.079048]
[1730137564767,0.40089273,69226.0,69225.0,0.079048]
[1730137564964,0.42852865,69226.0,69225.0,0.079048]
[1730137565446,0.42852865,69226.0,69225.0,0.002648]
[1730137565901,0.72608569,69226.0,69225.0,0.002648]
[1730137566143,0.68373656,69226.0,69225.0,0.002648]
[1730137566368,0.57558188,69226.0,69225.0,0.002648]
[1730137567015,0.6837394,69226.0,69225.0,0.002648]
[1730137567221,0.57558188,69226.0,69225.0,0.002648]
[1730137567656,0.82558968,69226.0,69225.0,0.002648]
[1730137567868,0.57058968,69226.0,69225.0,0.002648]
[1730137568085,0.57558968,69226.0,69225.0,0.002648]
[1730137568311,0.57058968,69226.0,69225.0,0.002648]
[1730137568536,0.57558968,69226.0,69225.0,0.002648]
[1730137568998,0.82558968,69226.0,69225.0,0.002648]
[1730137569648,0.9337416,69226.0,69225.0,0.002648]
[1730137570072,0.82558968,69226.0,69225.0,0.002648]
[1730137570726,0.93374238,69226.0,69225.0,0.002648]
[1730137572261,0.9337378,69226.0,69225.0,0.002648]
[1730137573197,0.82558585,69226.0,69225.0,0.002648]
[1730137573660,0.95637614,69226.0,69225.0,0.002648]
[1730137575849,0.84822397,69226.0,69225.0,0.002648]
[1730137576075,0.95637614,69226.0,69225.0,0.002648]
[1730137576285,0.84822397,69226.0,69225.0,0.002648]
[1730137576500,0.95637614,69226.0,69225.0,0.002648]
[1730137576939,0.95637394,69226.0,69225.0,0.002648]
[1730137577172,0.59822266,69226.0,69225.0,0.002648]
[1730137577373,0.66210521,69226.0,69225.0,0.002648]
[1730137577605,0.65210521,69226.0,69225.0,0.002648]
[1730137577809,0.40589273,69226.0,69225.0,0.002648]
[1730137578072,0.144464,69221.0,69220.0,0.000944]
[1730137578281,0.39496781,69221.0,69220.0,0.000944]
[1730137579140,0.39896781,69221.0,69220.0,0.001944]
[1730137580019,0.39896781,69221.0,69220.0,0.002944]
[1730137580917,0.39896781,69221.0,69205.0,0.077148]
[1730137580918,0.005,69212.0,69205.0,0.077148]
[1730137581139,0.244496,69206.0,69205.0,0.001648]
[1730137581359,0.43827605,69206.0,69205.0,0.001648]
[1730137581580,0.43827862,69206.0,69205.0,0.001648]
[1730137581795,0.39499981,69206.0,69205.0,0.001648]
[1730137582036,0.46489221,69206.0,69205.0,0.001648]
[1730137582249,0.51059189,69206.0,69205.0,0.015648]
[1730137582458,0.71237967,69206.0,69205.0,0.015648]
[1730137582686,0.9037331,69206.0,69205.0,0.015648]
[1730137582883,0.82321275,69206.0,69205.0,0.016648]
[1730137583092,0.82321275,69206.0,69205.0,0.002648]
[1730137583322,0.92901275,69206.0,69205.0,0.002648]
[1730137583737,0.92801275,69206.0,69205.0,0.002648]
[1730137584574,0.98608506,69206.0,69205.0,0.002648]
[1730137584797,0.98008506,69206.0,69205.0,0.001648]
[1730137585002,0.99408506,69206.0,69205.0,0.001648]
[1730137585210,0.99608506,69206.0,69205.0,0.001648]
[1730137585869,1.01873035,69206.0,69205.0,0.001648]
[1730137587442,1.10514343,69206.0,69205.0,0.001648]
[1730137587660,1.12680791,69206.0,69205.0,0.001648]
[1730137587867,1.12880791,69206.0,69205.0,0.001648]
[1730137588098,1.07026836,69206.0,69205.0,0.001648]
[1730137588339,0.005,69179.0,69176.0,0.29750956]
[1730137588555,0.244556,69177.0,69176.0,0.29750956]
[1730137588783,0.144571,69170.0,69164.0,0.105036]
[1730137588991,0.14457,69171.0,69164.0,0.249619]
[1730137589196,0.144573,69169.0,69164.0,0.105036]
[1730137589409,0.144572,69170.0,69168.0,0.081348]
[1730137589691,0.5687412,69169.0,69168.0,0.001648]
[1730137590343,0.41007681,69169.0,69168.0,0.001648]
[1730137590566,0.1,69158.0,69157.0,0.079632]
[1730137590818,0.244596,69158.0,69157.0,0.079632]
[1730137591273,0.1,69158.0,69157.0,0.079632]
[1730137591694,0.244596,69158.0,69157.0,0.079632]
[1730137591904,0.258596,69158.0,69157.0,0.079632]
[1730137593065,0.267596,69158.0,69157.0,0.080632]
[1730137593518,0.267596,69158.0,69157.0,0.075632]
[1730137594818,0.41809981,69158.0,69157.0,0.075632]
[1730137595029,0.267596,69158.0,69157.0,0.075632]
[1730137595480,0.123,69158.0,69157.0,0.075632]
[1730137595699,0.267596,69158.0,69157.0,0.075632]
[1730137595914,0.023,69158.0,69157.0,0.075632]
[1730137596131,0.023,69158.0,69157.0,0.22023]
[1730137596366,0.023,69158.0,69157.0,0.32533]
[1730137596799,0.36237956,69171.0,69163.0,0.144585]
[1730137597023,0.21780956,69171.0,69169.0,0.16866439]
[1730137597417,0.25,69187.0,69169.0,0.16866439]
[1730137597418,0.015,69191.0,69169.0,0.16866439]
[1730137597633,0.21780956,69197.0,69157.0,0.0801]
[1730137597634,0.41261079,69170.0,69157.0,0.0801]
[1730137597851,0.01,69189.0,69164.0,0.144582]
[1730137597852,0.289113,69177.0,69164.0,0.144582]
[1730137598063,0.21780956,69171.0,69161.0,0.16866439]
[1730137598276,0.144563,69174.0,69161.0,0.17366439]
[1730137598493,0.013,69171.0,69166.0,0.289159]
[1730137598709,0.013,69171.0,69170.0,0.144571]
[1730137598939,0.013,69171.0,69170.0,0.220671]
[1730137599158,0.013,69171.0,69170.0,0.22356215]
[1730137599380,0.017,69171.0,69170.0,0.220671]
[1730137599604,0.013,69171.0,69170.0,0.38933539]
[1730137599827,0.21780956,69178.0,69170.0,0.38933539]
[1730137599828,0.21780956,69178.0,69170.0,0.24476439]
[1730137600052,0.21780956,69178.0,69170.0,0.24276439]
[1730137600284,0.001,69171.0,69170.0,0.23976439]
[1730137600498,0.001,69171.0,69170.0,0.38433539]
[1730137600709,0.000825,69178.0,69170.0,0.23976439]
[1730137600932,0.000825,69178.0,69177.0,0.144556]
[1730137602278,0.000825,69178.0,69177.0,0.148556]
[1730137602508,0.000825,69178.0,69177.0,0.15144696]
[1730137602926,0.000825,69178.0,69177.0,0.22884696]
[1730137603141,0.000825,69178.0,69177.0,0.225956]
[1730137603355,0.006825,69178.0,69177.0,0.226956]
[1730137605139,0.006825,69178.0,69177.0,0.23484677]
[1730137605597,0.006825,69178.0,69177.0,0.22984677]
[1730137605805,0.006825,69178.0,69177.0,0.66351677]
[1730137606031,0.006825,69178.0,69177.0,0.656626]
[1730137606251,0.000875,69178.0,69177.0,0.655626]
[1730137606466,0.002875,69178.0,69177.0,0.679626]
[1730137608050,0.002875,69178.0,69177.0,0.783826]
[1730137608469,0.002875,69178.0,69177.0,0.778826]
[1730137609771,0.002875,69178.0,69177.0,0.45767]
[1730137609995,0.40836031,69178.0,69177.0,0.45767]
[1730137610221,0.39793281,69178.0,69177.0,0.45767]
[1730137610891,0.101875,69178.0,69177.0,0.44767]
[1730137611108,0.001875,69178.0,69177.0,0.44767]
[1730137611322,0.001875,69178.0,69177.0,0.44267]
[1730137611547,0.246429,69178.0,69177.0,0.44267]
[1730137611754,0.100875,69178.0,69177.0,0.42867]
[1730137612207,0.100875,69178.0,69177.0,0.445318]
[1730137612208,0.256429,69178.0,69177.0,0.445318]
[1730137612414,0.256429,69178.0,69177.0,0.431318]
[1730137612635,0.011875,69178.0,69177.0,0.431318]
[1730137612845,0.013875,69178.0,69177.0,0.431318]
[1730137613095,0.258429,69178.0,69177.0,0.431318]
[1730137613959,0.113875,69178.0,69177.0,0.426318]
[1730137614168,0.013875,69178.0,69177.0,0.426318]
[1730137615316,0.5825972,69178.0,69177.0,0.426318]
[1730137615975,0.5925972,69178.0,69177.0,0.426318]
[1730137616187,0.6988972,69178.0,69177.0,0.426318]
[1730137616399,0.6988972,69178.0,69177.0,0.425318]
[1730137616400,0.6878972,69178.0,69177.0,0.425318]
[1730137616621,0.86105464,69178.0,69177.0,0.425318]
[1730137616852,0.87505464,69178.0,69177.0,0.426318]
[1730137617145,0.85240101,69178.0,69177.0,0.426318]
[1730137617605,0.85240101,69178.0,69157.0,0.00165]
[1730137617606,0.42826039,69158.0,69157.0,0.00165]
[1730137617824,0.67550764,69158.0,69157.0,0.00165]
[1730137618257,0.50684325,69158.0,69157.0,0.00165]
[1730137618494,0.67550764,69158.0,69157.0,0.00165]
[1730137619172,0.5857642,69158.0,69157.0,0.00265]
[1730137619412,0.5927642,69158.0,69157.0,0.00165]
[1730137619852,0.5897642,69158.0,69157.0,0.00265]
[1730137620064,0.42109981,69158.0,69157.0,0.00265]
[1730137620529,0.42109981,69158.0,69155.0,0.001636]
[1730137620752,0.41327239,69152.0,69151.0,0.00127032]
[1730137621029,0.5687762,69152.0,69151.0,0.00127032]
[1730137621469,0.42277336,69152.0,69151.0,0.00127032]
[1730137621908,0.42777336,69152.0,69151.0,0.00227032]
[1730137622323,0.57517914,69152.0,69151.0,0.00227032]
[1730137622772,0.58917914,69152.0,69151.0,0.00227032]
[1730137622990,0.44177336,69152.0,69151.0,0.00227032]
[1730137623426,0.99604731,69152.0,69151.0,0.00227032]
[1730137623636,0.42828539,69146.0,69135.0,0.001636]
[1730137623919,0.5787892,69146.0,69135.0,0.001636]
[1730137624138,0.71971452,69146.0,69135.0,0.001636]
[1730137625475,0.73571452,69146.0,69135.0,0.001636]
[1730137626122,0.74971452,69146.0,69145.0,0.002636]
[1730137629456,0.74771452,69146.0,69145.0,0.002636]
[1730137629678,0.74271452,69146.0,69145.0,0.002636]
[1730137629900,0.43812481,69146.0,69145.0,0.002636]
[1730137630824,0.65593437,69146.0,69145.0,0.002636]
[1730137631258,0.43812481,69146.0,69145.0,0.002636]
[1730137631690,0.46079114,69146.0,69145.0,0.002636]
[1730137631901,0.61329495,69146.0,69145.0,0.002636]
[1730137633475,0.017,69144.0,69143.0,0.00155841]
[1730137633700,0.017,69144.0,69135.0,4.1e-07]
[1730137633701,0.509642,69136.0,69135.0,4.1e-07]
[1730137633929,0.70312997,69136.0,69135.0,4.1e-07]
[1730137634156,0.8288102,69136.0,69135.0,4.1e-07]
[1730137634389,0.85148194,69136.0,69135.0,4.1e-07]
[1730137634623,0.85348194,69136.0,69135.0,4.1e-07]
[1730137634857,1.01367071,69136.0,69135.0,4.1e-07]
[1730137635548,1.1823351,69136.0,69135.0,4.1e-07]
[1730137635771,1.01367071,69136.0,69135.0,4.1e-07]
[1730137636683,1.04167071,69136.0,69135.0,4.1e-07]
[1730137637309,1.01899897,69136.0,69135.0,4.1e-07]
[1730137637740,1.01699897,69136.0,69135.0,4.1e-07]
[1730137638417,0.76199897,69136.0,69135.0,4.1e-07]
[1730137638631,0.69783077,69136.0,69135.0,4.1e-07]
[1730137639086,0.32814581,69136.0,69135.0,4.1e-07]
[1730137639295,0.32314581,69136.0,69135.0,4.1e-07]
[1730137639512,0.30914581,69136.0,69135.0,4.1e-07]
[1730137639931,0.31414581,69136.0,69135.0,4.1e-07]
[1730137640141,0.43334279,69136.0,69135.0,4.1e-07]
[1730137640399,0.41934279,69136.0,69135.0,4.1e-07]
[1730137640611,0.54734279,69136.0,69135.0,4.1e-07]
[1730137641128,0.51934279,69136.0,69135.0,4.1e-07]
[1730137641488,0.55601102,69136.0,69135.0,4.1e-07]
[1730137642524,0.56901102,69136.0,69135.0,4.1e-07]
[1730137643982,0.78682058,69136.0,69135.0,4.1e-07]
[1730137644425,0.56901102,69136.0,69135.0,4.1e-07]
[1730137644892,0.55501102,69136.0,69135.0,4.1e-07]
[1730137645379,0.78682058,69136.0,69135.0,4.1e-07]
[1730137645588,0.56901102,69136.0,69135.0,4.1e-07]
[1730137645999,0.55601102,69136.0,69135.0,4.1e-07]
[1730137646209,0.43681404,69136.0,69135.0,4.1e-07]
[1730137646648,0.42281404,69136.0,69135.0,4.1e-07]
[1730137646859,0.41414581,69136.0,69135.0,4.1e-07]
[1730137647491,0.40014581,69136.0,69135.0,4.1e-07]
[1730137647693,0.41414581,69136.0,69135.0,4.1e-07]
[1730137647940,0.42014581,69136.0,69135.0,4.1e-07]
[1730137648124,0.40614581,69136.0,69135.0,4.1e-07]
[1730137648544,0.42014581,69136.0,69135.0,4.1e-07]
[1730137649233,0.005,69117.0,69108.0,0.0821]
[1730137649457,0.1,69109.0,69108.0,0.0821]
[1730137649676,0.1,69109.0,69108.0,0.25076439]
[1730137649883,0.1,69109.0,69108.0,0.35556439]
[1730137650089,0.1,69109.0,69108.0,0.1869]
[1730137650301,0.28938,69114.0,69108.0,0.1869]
[1730137650302,0.1,69113.0,69108.0,0.1869]
[1730137650509,0.1,69111.0,69108.0,0.1869]
[1730137650723,0.244695,69111.0,69108.0,0.1869]
[1730137650931,0.1,69111.0,69108.0,0.1869]
[1730137651141,0.1,69109.0,69108.0,0.1869]
[1730137651363,0.009,69109.0,69108.0,0.1869]
[1730137651573,0.109,69109.0,69108.0,0.1869]
[1730137651821,0.253698,69109.0,69108.0,0.1869]
[1730137652043,0.244698,69109.0,69108.0,0.1869]
[1730137652458,0.1,69109.0,69108.0,0.1869]
[1730137652670,0.144698,69109.0,69108.0,0.1869]
[1730137652883,0.244698,69109.0,69108.0,0.1869]
[1730137653741,0.289384,69113.0,69109.0,0.0824]
[1730137653944,0.144694,69111.0,69109.0,0.0824]
[1730137654150,0.244693,69112.0,69109.0,0.0824]
[1730137654584,0.1,69112.0,69109.0,0.0824]
[1730137654982,0.1,69110.0,69109.0,0.0824]
[1730137655964,0.1,69112.0,69109.0,0.0824]
[1730137656281,0.101,69110.0,69109.0,0.0824]
[1730137656633,0.499701,69108.0,69107.0,0.001636]
[1730137656833,0.40020481,69108.0,69107.0,0.001636]
[1730137658078,0.41420481,69108.0,69107.0,0.001636]
[1730137659302,0.42620481,69108.0,69107.0,0.001636]
[1730137659519,0.57670862,69108.0,69107.0,0.001636]
[1730137659727,0.58870862,69108.0,69107.0,0.001636]
[1730137659946,0.66838339,69099.0,69098.0,0.001636]
[1730137660148,0.8188872,69099.0,69098.0,0.001636]
[1730137661000,0.65022281,69099.0,69098.0,0.001636]
[1730137661207,0.65022281,69099.0,69090.0,0.0829]
[1730137661208,0.1,69097.0,69090.0,0.064536]
[1730137661412,0.1,69095.0,69090.0,0.064536]
[1730137661620,0.1,69093.0,69090.0,0.064536]
[1730137661827,0.15050381,69092.0,69090.0,0.064536]
[1730137662029,0.1,69091.0,69090.0,0.064536]
[1730137662254,0.294406,69107.0,69090.0,0.064536]
[1730137662461,0.294406,69107.0,69092.0,0.16866439]
[1730137662462,0.1,69096.0,69092.0,0.16866439]
[1730137662681,0.005,69095.0,69092.0,0.16866439]
[1730137662884,0.21780956,69106.0,69093.0,0.1064]
[1730137663092,0.21780956,69099.0,69097.0,0.16866439]
[1730137663297,0.21780956,69099.0,69098.0,0.16866439]
[1730137663506,0.21780956,69106.0,69098.0,0.16866439]
[1730137663718,0.21780956,69106.0,69104.0,0.16866439]
[1730137664140,0.21780956,69106.0,69105.0,0.0797]
[1730137664356,0.21780956,69106.0,69097.0,0.289447]
[1730137664357,0.005,69102.0,69087.0,0.0797]
[1730137664556,0.25,69112.0,69087.0,0.0797]
[1730137664557,0.012,69099.0,69091.0,0.16866439]
[1730137664763,0.012,69099.0,69092.0,0.1094]
[1730137664967,0.15050381,69101.0,69093.0,0.0797]
[1730137665174,0.21780956,69099.0,69093.0,0.0797]
[1730137665385,0.008,69106.0,69092.0,0.1094]
[1730137665590,0.002,69099.0,69098.0,0.31338539]
[1730137665796,0.21780956,69104.0,69098.0,0.31338539]
[1730137666001,0.21780956,69104.0,69101.0,0.144715]
[1730137666201,0.21780956,69104.0,69102.0,0.08]
[1730137667741,0.01,69104.0,69102.0,0.08]
[1730137668819,0.011,69104.0,69102.0,0.08]
[1730137669419,0.29521481,69103.0,69102.0,0.08]
[1730137669602,0.15050381,69103.0,69102.0,0.08]
[1730137670427,0.29521481,69103.0,69102.0,0.08]
[1730137671242,0.30421481,69103.0,69102.0,0.08]
[1730137671603,0.289432,69101.0,69095.0,0.0818]
[1730137671811,0.144722,69098.0,69095.0,0.0818]
[1730137672229,0.15050381,69097.0,69095.0,0.0818]
[1730137672433,0.22177795,69097.0,69090.0,0.001648]
[1730137672651,0.1,69096.0,69090.0,0.001648]
[1730137672874,0.009,69103.0,69093.0,0.16866439]
[1730137673053,0.000824,69104.0,69093.0,0.16866439]
[1730137673054,0.1,69099.0,69093.0,0.16866439]
[1730137673296,0.25050381,69099.0,69093.0,0.31339439]
[1730137673469,0.15050381,69099.0,69098.0,0.16866439]
[1730137673872,0.013,69103.0,69098.0,0.16866439]
[1730137674072,0.15050381,69102.0,69098.0,0.16866439]
[1730137674272,0.014,69099.0,69098.0,0.16866439]
[1730137674743,0.15050381,69102.0,69098.0,0.16866439]
[1730137675416,0.002,69099.0,69098.0,0.16866439]
[1730137675750,0.000824,69104.0,69098.0,0.16866439]
[1730137675967,0.101,69102.0,69098.0,0.16866439]
[1730137676384,0.1,69102.0,69098.0,0.16866439]
[1730137676587,0.21780956,69101.0,69098.0,0.16866439]
[1730137679859,0.009,69101.0,69098.0,0.16866439]
[1730137681699,0.01354419,69100.0,69098.0,0.16866439]
[1730137681910,0.01354419,69099.0,69098.0,0.16866439]
[1730137682596,0.1,69102.0,69098.0,0.16866439]
[1730137683004,0.008,69100.0,69098.0,0.16866439]
[1730137683442,0.1,69102.0,69098.0,0.16866439]
[1730137683671,0.01354687,69101.0,69098.0,0.16866439]
[1730137683879,0.01354687,69100.0,69098.0,0.16866439]
[1730137684098,0.01354687,69099.0,69098.0,0.16866439]
[1730137684681,0.11,69102.0,69098.0,0.16866439]
[1730137685791,0.1,69102.0,69098.0,0.16866439]
[1730137686014,0.008,69100.0,69098.0,0.16866439]
[1730137686231,0.01355172,69099.0,69098.0,0.16866439]
[1730137687703,0.21780956,69101.0,69098.0,0.16866439]
[1730137688544,0.005,69096.0,69090.0,0.001648]
[1730137688756,0.1,69094.0,69090.0,0.001648]
[1730137688970,0.1,69092.0,69090.0,0.001648]
[1730137689184,0.29523981,69091.0,69090.0,0.001648]
[1730137689605,0.15050381,69091.0,69090.0,0.001648]
[1730137689863,0.29523981,69091.0,69090.0,0.001648]
[1730137690490,0.29723981,69091.0,69090.0,0.001648]
[1730137690912,0.29623981,69091.0,69090.0,0.001648]
[1730137691342,0.29923981,69091.0,69090.0,0.001648]
[1730137691753,0.31279706,69091.0,69090.0,0.001648]
[1730137692172,0.41679706,69091.0,69090.0,0.001648]
[1730137692401,0.67889211,69091.0,69090.0,0.001648]
[1730137692613,0.48172529,69091.0,69090.0,0.001648]
[1730137692814,0.57667668,69091.0,69090.0,0.001648]
[1730137693020,0.41679706,69091.0,69090.0,0.001648]
[1730137693231,0.94196324,69091.0,69090.0,0.001648]
[1730137693445,0.8323674,69091.0,69090.0,0.001648]
[1730137693654,0.73015368,69091.0,69090.0,0.001648]
[1730137694076,0.72515368,69091.0,69090.0,0.001648]
[1730137694287,0.72715368,69091.0,69090.0,0.001648]
[1730137694494,0.73815368,69091.0,69090.0,0.001648]
[1730137694912,0.75773971,69091.0,69090.0,0.001648]
[1730137695117,0.75773971,69091.0,69081.0,0.001636]
[1730137695118,0.499755,69082.0,69081.0,0.001636]
[1730137695330,1.06076457,69082.0,69081.0,0.001636]
[1730137695739,0.294541,69075.0,69064.0,0.06591]
[1730137695977,0.17486852,69074.0,69066.0,0.16866439]
[1730137696174,0.01353115,69073.0,69066.0,0.16866439]
[1730137696412,0.15050381,69072.0,69066.0,0.16866439]
[1730137696608,0.01082486,69071.0,69066.0,0.16866439]
[1730137696824,0.01353108,69070.0,69066.0,0.16866439]
[1730137697026,0.01353108,69069.0,69066.0,0.16866439]
[1730137697241,0.01353108,69068.0,69066.0,0.16866439]
[1730137697443,0.01353108,69067.0,69066.0,0.16866439]
[1730137697721,0.01353108,69070.0,69066.0,0.16866439]
[1730137698143,0.21780956,69068.0,69064.0,0.06591]
[1730137698355,0.01353108,69067.0,69064.0,0.06591]
[1730137698564,0.21780956,69070.0,69064.0,0.06591]
[1730137698766,0.0135152,69069.0,69064.0,0.06591]
[1730137699814,0.22480956,69070.0,69064.0,0.06591]
[1730137700056,0.01351199,69068.0,69064.0,0.06591]
[1730137700264,0.01351199,69067.0,69064.0,0.06591]
[1730137700476,0.001,69069.0,69064.0,0.07091]
[1730137700687,0.01350909,69068.0,69064.0,0.07091]
[1730137701335,0.144791,69065.0,69062.0,0.02268021]
[1730137701545,0.1640129,69064.0,69062.0,0.02268021]
[1730137701758,0.15830409,69063.0,69062.0,0.02268021]
[1730137701972,0.3088079,69063.0,69062.0,0.02268021]
[1730137702177,0.144797,69062.0,69058.0,0.0793]
[1730137702384,0.1640129,69061.0,69058.0,0.0843]
[1730137702592,0.15050381,69061.0,69058.0,0.0843]
[1730137702798,0.15050381,69061.0,69058.0,0.0793]
[1730137703051,0.15050381,69061.0,69051.0,0.28964]
[1730137703052,0.15050381,69061.0,69051.0,0.0623]
[1730137703277,0.144815,69054.0,69051.0,0.0623]
[1730137703491,0.144818,69052.0,69051.0,0.0623]
[1730137703712,0.14483,69046.0,69045.0,0.02268637]
[1730137703928,0.16400308,69046.0,69040.0,0.005]
[1730137704144,0.289656,69048.0,69039.0,0.005]
[1730137704145,0.15050381,69045.0,69039.0,0.005]
[1730137704359,0.15050381,69045.0,69036.0,0.144851]
[1730137704360,0.144835,69044.0,69036.0,0.144851]
[1730137704592,0.15050381,69043.0,69036.0,0.144851]
[1730137704800,0.15050381,69043.0,69036.0,0.16866439]
[1730137705025,0.15050381,69043.0,69037.0,0.291333]
[1730137705026,0.01349261,69042.0,69037.0,0.291333]
[1730137705323,0.01349261,69042.0,69039.0,0.144845]
[1730137705531,0.01349261,69042.0,69037.0,0.291333]
[1730137705532,0.001,69045.0,69040.0,0.16866439]
[1730137705747,0.001,69045.0,69043.0,0.144837]
[1730137705960,0.001,69045.0,69044.0,0.31349939]
[1730137706175,0.001,69045.0,69044.0,0.39559939]
[1730137706611,0.002,69045.0,69044.0,0.39559939]
[1730137706814,0.001,69045.0,69044.0,0.39559939]
[1730137707019,0.001,69045.0,69044.0,0.25076439]
[1730137707433,0.1,69053.0,69044.0,0.0821]
[1730137707648,0.21780956,69049.0,69044.0,0.0821]
[1730137708056,0.21780956,69049.0,69041.0,0.14484]
[1730137708269,0.15050381,69048.0,69038.0,0.001638]
[1730137708477,0.007,69045.0,69038.0,0.001638]
[1730137708691,0.15050381,69044.0,69038.0,0.001638]
[1730137709512,0.15050381,69044.0,69036.0,0.148127]
[1730137709687,0.15050381,69044.0,69037.0,0.003276]
[1730137709922,0.21780956,69041.0,69037.0,0.148125]
[1730137710139,0.15050381,69044.0,69037.0,0.003276]
[1730137710344,0.15150381,69044.0,69038.0,0.144846]
[1730137710471,0.15050381,69044.0,69037.0,0.148124]
[1730137710682,0.15050381,69044.0,69034.0,0.16866439]
[1730137710893,0.15250381,69044.0,69035.0,0.144853]
[1730137711310,0.21780956,69042.0,69036.0,0.144851]
[1730137711489,0.21780956,69042.0,69037.0,0.144849]
[1730137711490,0.01347339,69041.0,69037.0,0.144849]
[1730137711686,0.01347339,69041.0,69038.0,0.144845]
[1730137711911,0.01347339,69041.0,69034.0,0.16866439]
[1730137711912,0.01347339,69041.0,69036.0,0.14485]
[1730137712113,0.01347339,69041.0,69036.0,0.2897]
[1730137712352,0.01347339,69041.0,69036.0,0.14485]
[1730137712538,0.01347339,69041.0,69035.0,0.144852]
[1730137712974,0.01347339,69041.0,69036.0,0.144851]
[1730137713169,0.01447339,69041.0,69036.0,0.144851]
[1730137713371,0.01347339,69040.0,69036.0,0.144851]
[1730137713570,0.01347339,69039.0,69036.0,0.144851]
[1730137713774,0.001,69041.0,69035.0,0.289708]
[1730137713986,0.001,69041.0,69040.0,0.31350739]
[1730137714406,0.21780956,69048.0,69047.0,0.144828]
[1730137714583,0.21780956,69048.0,69047.0,0.31349239]
[1730137714779,0.1,69055.0,69047.0,0.16866439]
[1730137715009,0.1,69055.0,69040.0,0.473887]
[1730137715010,0.01347566,69054.0,69053.0,0.31348039]
[1730137715162,0.21780956,69056.0,69053.0,0.16866439]
[1730137715359,0.21780956,69056.0,69053.0,0.31347939]
[1730137715566,0.21780956,69056.0,69053.0,0.16866439]
[1730137715962,0.01348048,69055.0,69053.0,0.16866439]
[1730137716194,0.01348048,69055.0,69053.0,0.17366439]
[1730137716484,0.01348048,69055.0,69054.0,0.144814]
[1730137716686,0.01348048,69055.0,69053.0,0.46129539]
[1730137716865,0.1,69062.0,69054.0,0.144813]
[1730137717065,0.006,69056.0,69053.0,0.45829539]
[1730137717274,0.006,69056.0,69055.0,0.41217639]
[1730137717589,0.02768931,69071.0,69055.0,0.34806439]
[1730137717590,0.005,69071.0,69055.0,0.34806439]
[1730137717793,0.21780956,69063.0,69056.0,0.00289589]
[1730137717998,0.24130387,69062.0,69061.0,0.144799]
[1730137718196,0.24130387,69062.0,69055.0,0.34806439]
[1730137718376,0.01349431,69061.0,69058.0,0.144805]
[1730137718596,0.01349431,69060.0,69057.0,0.434422]
[1730137718964,0.294553,69072.0,69057.0,0.434421]
[1730137718965,0.155611,69067.0,69057.0,0.434421]
[1730137719181,0.21780956,69063.0,69057.0,0.289615]
[1730137719383,0.01350341,69062.0,69057.0,0.289615]
[1730137719524,0.21780956,69063.0,69057.0,0.289615]
[1730137719525,0.01350341,69061.0,69058.0,0.144805]
[1730137719727,0.01350341,69060.0,69057.0,0.289615]
[1730137719931,0.01350341,69060.0,69055.0,0.34906439]
[1730137719932,0.000824,69067.0,69063.0,0.144794]
[1730137720131,0.01350792,69066.0,69059.0,0.16866439]
[1730137720402,0.011,69061.0,69060.0,0.434404]
[1730137720600,0.02450792,69061.0,69060.0,0.434404]
[1730137720801,0.01350792,69061.0,69060.0,0.434404]
[1730137722883,0.01450792,69061.0,69060.0,0.446404]